lending/lending_fUSD_20250913
["ID","MTS","AMOUNT","RATE_DAILY","PERIOD"]
[385352889,1757790730307,-400.0,0.00028767,2]
[385352890,1757790730316,-400.0,0.00028767,2]
[385352891,1757790730326,-636.43,0.00028767,2]
[385352892,1757790730335,-400.0,0.00028767,2]
[385352893,1757790730344,-1822.15,0.00028767,2]
[385352894,1757790730353,-400.0,0.00028767,2]
[385352895,1757790730362,-400.0,0.00028767,2]
[385352896,1757790730372,-417.32,0.00028767,2]
[385352897,1757790730381,-400.0,0.00028767,2]
[385352898,1757790730391,-1015.89,0.00028767,2]
[385352899,1757790730400,-983.53,0.00028767,2]
[385352900,1757790730409,-761.25,0.00028767,2]
[385352901,1757790730419,-722.69,0.00028767,2]
[385352902,1757790730427,-400.0,0.00028767,2]
[385352903,1757790730437,-411.62,0.00028767,2]
[385352904,1757790730446,-670.74,0.00028767,2]
[385352905,1757790730455,-400.0,0.00028767,2]
[385352906,1757790730464,-458.09,0.00028767,2]
[385352907,1757790730477,-400.0,0.00028767,2]
[385352908,1757790730487,-589.72,0.00028767,2]
[385352909,1757790730495,-400.0,0.00028767,2]
[385352910,1757790730505,-400.0,0.00028767,2]
[385352911,1757790730513,-1393.14,0.00028767,2]
[385352912,1757790730523,-422.08,0.00028767,2]
[385352913,1757790730531,-400.0,0.00028767,2]
[385352914,1757790730541,-1286.51,0.00028767,2]
[385352915,1757790730550,-400.0,0.00028767,2]
[385352916,1757790730559,-400.0,0.00028767,2]
[385352917,1757790730569,-400.0,0.00028767,2]
[385352918,1757790730577,-1836.39,0.00028767,2]
[385352919,1757790730587,-400.0,0.00028767,2]
[385352920,1757790730596,-806.89,0.00028767,2]
[385352921,1757790730605,-3209.32,0.00028767,2]
[385352922,1757790730616,-1118.88,0.00028767,2]
[385352923,1757790730625,-2346.72,0.00028767,2]
[385352924,1757790730634,-862.09,0.00028767,2]
[385352925,1757790730644,-400.0,0.00028767,2]
[385352926,1757790730655,-400.0,0.00028767,2]
[385352927,1757790730664,-1033.98,0.00028767,2]
[385352928,1757790730673,-400.0,0.00028767,2]
[385352929,1757790730683,-400.0,0.00028767,2]
[385352930,1757790730692,-702.99,0.00028767,2]
[385352931,1757790730702,-400.0,0.00028767,2]
[385352932,1757790730711,-1450.08,0.00028767,2]
[385352933,1757790730721,-896.46,0.00028767,2]
[385352934,1757790730731,-524.85,0.00028767,2]
[385352935,1757790730740,-837.65,0.00028767,2]
[385352936,1757790730751,-941.17,0.00028767,2]
[385352937,1757790730979,-872.8,0.00028767,2]
[385352938,1757790730988,-727.17,0.00028767,2]
[385352939,1757790730997,-711.83,0.00028767,2]
[385352940,1757790731006,-765.36,0.00028767,2]
[385352941,1757790731016,-2033.09,0.00028767,2]
[385352942,1757790731025,-400.0,0.00028767,2]
[385352943,1757790731034,-1000.0,0.00028767,2]
[385352944,1757790731043,-778.2,0.00028767,2]
[385352945,1757790731051,-980.63,0.00028767,2]
[385352946,1757790731060,-599.03,0.00028767,2]
[385352947,1757790731070,-538.72,0.00028767,2]
[385352948,1757790731079,-677.3,0.00028767,2]
[385352949,1757790731088,-1183.03,0.00028767,2]
[385352950,1757790731097,-722.19,0.00028767,2]
[385352951,1757790731106,-1015.48,0.00028767,2]
[385352952,1757790731116,-965.24,0.00028767,2]
[385352953,1757790731125,-400.0,0.00028767,2]
[385352954,1757790731134,-400.0,0.00028767,2]
[385352955,1757790731143,-653.28,0.00028767,2]
[385352956,1757790731152,-412.2966356,0.00028767,2]
[385352957,1757790731161,-974.74,0.00028767,2]
[385352958,1757790731170,-400.0,0.00028767,2]
[385352959,1757790731179,-400.0,0.00028767,2]
[385352960,1757790731189,-532.11,0.00028767,2]
[385352961,1757790731198,-400.0,0.00028767,2]
[385352962,1757790731207,-741.23,0.00028767,2]
[385352963,1757790731217,-775.6,0.00028767,2]
[385352964,1757790731226,-400.0,0.00028767,2]
[385352965,1757790731236,-400.0,0.00028767,2]
[385352966,1757790731245,-1047.99,0.00028767,2]
[385352967,1757790731254,-400.0,0.00028767,2]
[385352968,1757790731263,-867.54,0.00028767,2]
[385352969,1757790731272,-400.0,0.00028767,2]
[385352970,1757790731281,-835.84,0.00028767,2]
[385352971,1757790731291,-2266.8,0.00028767,2]
[385352972,1757790731300,-603.59,0.00028767,2]
[385352973,1757790731311,-409.11524602,0.00028767,2]
[385352974,1757790731320,-402.25261847,0.00028767,2]
[385352975,1757790731330,-400.0,0.00028767,2]
[385352976,1757790731339,-1243.58,0.00028767,2]
[385352977,1757790731348,-526.24,0.00028767,2]
[385352978,1757790731357,-379.9131675,0.00028767,2]
[385352979,1757790731366,-513.48979932,0.00028767,2]
[385352980,1757790731375,-605.54,0.00028767,2]
[385352981,1757790731385,-502.15,0.00028767,2]
[385352982,1757790731394,-708.83,0.00028767,2]
[385352983,1757790731404,-495.47,0.00028767,2]
[385352984,1757790731413,-462.88,0.00028767,2]
[385352985,1757790731423,-858.84,0.00028767,2]
[385352986,1757790731433,-2089.21,0.00028767,2]
[385352987,1757790731442,-1484.39,0.00028767,2]
[385352988,1757790731452,-1139.82,0.00028767,2]
[385352989,1757790731461,-435.55181231,0.00028767,2]
[385352990,1757790731474,-676.37,0.00028767,2]
[385352991,1757790731483,-920.38,0.00028767,2]
[385352992,1757790731493,-785.36,0.00028767,2]
[385352993,1757790731503,-400.0,0.00028767,2]
[385352994,1757790731512,-150.0,0.00028767,2]
[385352995,1757790731522,-612.46,0.00028767,2]
[385352996,1757790731531,-400.0,0.00028767,2]
[385352997,1757790731544,-1042.18,0.00028767,2]
[385352998,1757790731554,-857.85,0.00028767,2]
[385352999,1757790731563,-400.0,0.00028767,2]
[385353000,1757790731573,-400.0,0.00028767,2]
[385353001,1757790731582,-400.0,0.00028767,2]
[385353002,1757790731592,-714.23,0.00028767,2]
[385353003,1757790731602,-647.42,0.00028767,2]
[385353004,1757790731612,-894.39,0.00028767,2]
[385353005,1757790731621,-2338.03,0.00028767,2]
[385353006,1757790731631,-513.3,0.00028767,2]
[385353007,1757790731641,-924.41,0.00028767,2]
[385353008,1757790731650,-841.74,0.00028767,2]
[385353009,1757790731659,-1469.88,0.00028767,2]
[385353010,1757790731668,-722.3,0.00028767,2]
[385353011,1757790731678,-415.27,0.00028767,2]
[385353012,1757790731687,-400.0,0.00028767,2]
[385353013,1757790731696,-1485.88,0.00028767,2]
[385353014,1757790731705,-767.19,0.00028767,2]
[385353015,1757790731715,-814.0,0.00028767,2]
[385353016,1757790731725,-1229.51,0.00028767,2]
[385353017,1757790731734,-400.0,0.00028767,2]
[385353018,1757790731744,-400.0,0.00028767,2]
[385353019,1757790731753,-844.21,0.00028767,2]
[385353020,1757790731763,-400.0,0.00028767,2]
[385353021,1757790731773,-400.0,0.00028767,2]
[385353022,1757790731785,-403.67852751,0.00028767,2]
[385353023,1757790731794,-449.16,0.00028767,2]
[385353024,1757790731805,-865.66,0.00028767,2]
[385353025,1757790731815,-2265.68,0.00028767,2]
[385353026,1757790731824,-400.0,0.00028767,2]
[385353027,1757790731834,-572.0,0.00028767,2]
[385353028,1757790731843,-863.57,0.00028767,2]
[385353029,1757790731852,-2112.49,0.00028767,2]
[385353030,1757790731861,-1107.28,0.00028767,2]
[385353031,1757790731870,-510.21,0.00028767,2]
[385353032,1757790731879,-400.0,0.00028767,2]
[385353033,1757790731888,-400.0,0.00028767,2]
[385353034,1757790731898,-1028.51,0.00028767,2]
[385353035,1757790731908,-1170.47,0.00028767,2]
[385353036,1757790731917,-841.3,0.00028767,2]
[385353037,1757790731928,-856.96,0.00028767,2]
[385353038,1757790731939,-400.0,0.00028767,2]
[385353039,1757790731948,-411.49177163,0.00028767,2]
[385353040,1757790731957,-906.61,0.00028767,2]
[385353041,1757790731966,-1458.58,0.00028767,2]
[385353042,1757790731977,-701.85,0.00028767,2]
[385353043,1757790731989,-4256.1,0.00028767,2]
[385353044,1757790731999,-400.0,0.00028767,2]
[385353045,1757790732008,-400.0,0.00028767,2]
[385353046,1757790732017,-1006.96,0.00028767,2]
[385353047,1757790732026,-728.15,0.00028767,2]
[385353048,1757790732035,-400.0,0.00028767,2]
[385353049,1757790732044,-925.96,0.00028767,2]
[385353050,1757790732053,-400.0,0.00028767,2]
[385353051,1757790732062,-400.0,0.00028767,2]
[385353052,1757790732071,-445.69,0.00028767,2]
[385353053,1757790732080,-1198.57,0.00028767,2]
[385353054,1757790732089,-1974.67,0.00028767,2]
[385353055,1757790732098,-2857.69,0.00028767,2]
[385353056,1757790732107,-407.20868974,0.00028767,2]
[385353057,1757790732116,-400.0,0.00028767,2]
[385353058,1757790732125,-847.13,0.00028767,2]
[385353059,1757790732135,-400.0,0.00028767,2]
[385353060,1757790732144,-2990.98,0.00028767,2]
[385353061,1757790732152,-400.0,0.00028767,2]
[385353062,1757790732162,-400.0,0.00028767,2]
[385353063,1757790732172,-2111.33,0.00028767,2]
[385353064,1757790732181,-834.58,0.00028767,2]
[385353065,1757790732190,-2302.98,0.00028767,2]
[385353066,1757790732200,-400.0,0.00028767,2]
[385353067,1757790732209,-1747.56,0.00028767,2]
[385353068,1757790732219,-466.82,0.00028767,2]
[385353069,1757790732228,-2233.25,0.00028767,2]
[385353070,1757790732239,-1255.2,0.00028767,2]
[385353071,1757790732249,-400.0,0.00028767,2]
[385353072,1757790732258,-400.0,0.00028767,2]
[385353073,1757790732269,-694.91,0.00028767,2]
[385353074,1757790732278,-400.0,0.00028767,2]
[385353075,1757790732287,-400.0,0.00028767,2]
[385353076,1757790732296,-400.0,0.00028767,2]
[385353077,1757790732307,-1143.85,0.00028767,2]
[385353078,1757790732316,-1963.87,0.00028767,2]
[385353079,1757790732326,-400.0,0.00028767,2]
[385353080,1757790732335,-400.0,0.00028767,2]
[385353081,1757790732344,-807.66,0.00028767,2]
[385353082,1757790732353,-2263.39,0.00028767,2]
[385353083,1757790732363,-400.0,0.00028767,2]
[385353084,1757790732371,-400.0,0.00028767,2]
[385353085,1757790732381,-927.88,0.00028767,2]
[385353086,1757790732390,-400.0,0.00028767,2]
[385353087,1757790732399,-952.59,0.00028767,2]
[385353088,1757790732409,-944.31,0.00028767,2]
[385353089,1757790732418,-931.48,0.00028767,2]
[385353090,1757790732428,-400.0,0.00028767,2]
[385353091,1757790732437,-669.04,0.00028767,2]
[385353092,1757790732446,-1333.33,0.00028767,2]
[385353093,1757790732455,-400.0,0.00028767,2]
[385353094,1757790732464,-400.0,0.00028767,2]
[385353095,1757790732476,-1798.63,0.00028767,2]
[385353096,1757790732486,-711.99,0.00028767,2]
[385353097,1757790732495,-1079.08,0.00028767,2]
[385353098,1757790732504,-568.52,0.00028767,2]
[385353099,1757790732514,-1030.24,0.00028767,2]
[385353100,1757790732523,-400.0,0.00028767,2]
[385353101,1757790732532,-400.0,0.00028767,2]
[385353102,1757790732542,-977.53,0.00028767,2]
[385353103,1757790732551,-400.0,0.00028767,2]
[385353104,1757790732561,-923.82,0.00028767,2]
[385353105,1757790732570,-400.0,0.00028767,2]
[385353106,1757790732579,-1374.51,0.00028767,2]
[385353107,1757790732587,-707.41,0.00028767,2]
[385353108,1757790732596,-539.76,0.00028767,2]
[385353109,1757790732605,-400.0,0.00028767,2]
[385353110,1757790732614,-532.15,0.00028767,2]
[385353111,1757790732623,-1683.27,0.00028767,2]
[385353112,1757790732632,-1021.66,0.00028767,2]
[385353113,1757790732641,-796.82,0.00028767,2]
[385353114,1757790732650,-786.29,0.00028767,2]
[385353115,1757790732660,-400.0,0.00028767,2]
[385353116,1757790732669,-923.85,0.00028767,2]
[385353117,1757790732678,-585.84,0.00028767,2]
[385353118,1757790732686,-1254.84,0.00028767,2]
[385353119,1757790732695,-527.3480476,0.00028767,2]
[385353120,1757790732704,-400.0,0.00028767,2]
[385353121,1757790732714,-1026.54,0.00028767,2]
[385353122,1757790732723,-492.79,0.00028767,2]
[385353123,1757790732732,-2328.06,0.00028767,2]
[385353124,1757790732741,-1854.12,0.00028767,2]
[385353125,1757790732751,-406.59675044,0.00028767,2]
[385353126,1757790732761,-400.0,0.00028767,2]
[385353127,1757790732770,-3059.22,0.00028767,2]
[385353128,1757790732779,-1159.49,0.00028767,2]
[385353129,1757790732787,-1000.0,0.00028767,2]
[385353130,1757790732797,-618.58,0.00028767,2]
[385353131,1757790732806,-400.0,0.00028767,2]
[385353132,1757790732816,-1262.94,0.00028767,2]
[385353133,1757790732825,-400.0,0.00028767,2]
[385353134,1757790732836,-403.51600245,0.00028767,2]
[385353135,1757790732845,-400.0,0.00028767,2]
[385353136,1757790732856,-400.0,0.00028767,2]
[385353137,1757790732865,-666.27,0.00028767,2]
[385353138,1757790732874,-1602.35,0.00028767,2]
[385353139,1757790732884,-2778.98,0.00028767,2]
[385353140,1757790732892,-400.0,0.00028767,2]
[385353141,1757790732902,-438.09,0.00028767,2]
[385353142,1757790732911,-344.99,0.00028767,2]
[385353143,1757790732920,-400.0,0.00028767,2]
[385353144,1757790732929,-400.0,0.00028767,2]
[385353145,1757790732939,-523.76,0.00028767,2]
[385353146,1757790732948,-400.0,0.00028767,2]
[385353147,1757790732958,-734.11,0.00028767,2]
[385353148,1757790732967,-634.16,0.00028767,2]
[385353149,1757790732975,-887.05,0.00028767,2]
[385353150,1757790732985,-400.0,0.00028767,2]
[385353151,1757790732994,-1288.99,0.00028767,2]
[385353152,1757790733003,-942.86,0.00028767,2]
[385353153,1757790733012,-2431.97,0.00028767,2]
[385353154,1757790733022,-400.0,0.00028767,2]
[385353155,1757790733031,-400.0,0.00028767,2]
[385353156,1757790733039,-1697.7,0.00028767,2]
[385353157,1757790733048,-1448.36,0.00028767,2]
[385353158,1757790733057,-488.5,0.00028767,2]
[385353159,1757790733066,-655.13,0.00028767,2]
[385353160,1757790733075,-693.6,0.00028767,2]
[385353161,1757790733084,-985.78,0.00028767,2]
[385353162,1757790733093,-400.0,0.00028767,2]
[385353163,1757790733102,-914.74,0.00028767,2]
[385353164,1757790733112,-400.0,0.00028767,2]
[385353165,1757790733121,-3119.56,0.00028767,2]
[385353166,1757790733130,-1199.53,0.00028767,2]
[385353167,1757790733140,-869.51,0.00028767,2]
[385353168,1757790733148,-400.0,0.00028767,2]
[385353169,1757790733157,-492.5,0.00028767,2]
[385353170,1757790733167,-400.0,0.00028767,2]
[385353171,1757790733175,-683.66,0.00028767,2]
[385353172,1757790733184,-412.9250592,0.00028767,2]
[385353173,1757790733193,-1155.29,0.00028767,2]
[385353174,1757790733203,-1010.79,0.00028767,2]
[385353175,1757790733211,-655.9,0.00028767,2]
[385353176,1757790733221,-400.0,0.00028767,2]
[385353177,1757790733230,-450.64,0.00028767,2]
[385353178,1757790733239,-1130.65,0.00028767,2]
[385353179,1757790733248,-400.0,0.00028767,2]
[385353180,1757790733257,-1727.97,0.00028767,2]
[385353181,1757790733266,-536.28,0.00028767,2]
[385353182,1757790733276,-920.05,0.00028767,2]
[385353183,1757790733285,-971.87,0.00028767,2]
[385353184,1757790733295,-1049.74,0.00028767,2]
[385353185,1757790733304,-400.0,0.00028767,2]
[385353186,1757790733313,-807.81,0.00028767,2]
[385353187,1757790733322,-1540.01,0.00028767,2]
[385353188,1757790733331,-1074.98,0.00028767,2]
[385353189,1757790733340,-767.61,0.00028767,2]
[385353190,1757790733349,-400.0,0.00028767,2]
[385353191,1757790733359,-400.0,0.00028767,2]
[385353192,1757790733368,-400.0,0.00028767,2]
[385353193,1757790733378,-400.0,0.00028767,2]
[385353194,1757790733387,-400.0,0.00028767,2]
[385353195,1757790733396,-721.19,0.00028767,2]
[385353196,1757790733405,-843.61,0.00028767,2]
[385353197,1757790733415,-1380.97,0.00028767,2]
[385353198,1757790733425,-798.34,0.00028767,2]
[385353199,1757790733434,-400.0,0.00028767,2]
[385353200,1757790733443,-1507.18,0.00028767,2]
[385353201,1757790733453,-736.94,0.00028767,2]
[385353202,1757790733462,-8779.55,0.00028767,2]
[385353203,1757790733474,-400.0,0.00028767,2]
[385353204,1757790733484,-400.0,0.00028767,2]
[385353205,1757790733493,-594.63,0.00028767,2]
[385353206,1757790733502,-1003.9,0.00028767,2]
[385353207,1757790733511,-506.79,0.00028767,2]
[385353208,1757790733520,-729.26,0.00028767,2]
[385353209,1757790733529,-2622.41,0.00028767,2]
[385353210,1757790733540,-666.01,0.00028767,2]
[385353211,1757790733554,-649.71,0.00028767,2]
[385353212,1757790733563,-813.26,0.00028767,2]
[385353213,1757790733573,-752.66,0.00028767,2]
[385353214,1757790733583,-157.87264828,0.00028767,2]
[385353215,1757790733592,-500.0,0.00028767,2]
[385353216,1757790733601,-851.12,0.00028767,2]
[385353217,1757790733611,-745.71,0.00028767,2]
[385353218,1757790733620,-1034.54,0.00028767,2]
[385353219,1757790733630,-416.83171003,0.00028767,2]
[385353220,1757790733640,-436.15,0.00028767,2]
[385353221,1757790733649,-931.13,0.00028767,2]
[385353222,1757790733659,-2504.84,0.00028767,2]
[385353223,1757790733668,-990.05,0.00028767,2]
[385353224,1757790733677,-955.65,0.00028767,2]
[385353225,1757790733686,-400.0,0.00028767,2]
[385353226,1757790733695,-400.0,0.00028767,2]
[385353227,1757790733704,-615.48,0.00028767,2]
[385353228,1757790733713,-400.0,0.00028767,2]
[385353229,1757790733722,-167.0,0.00028767,14]
[385353230,1757790733731,-506.53637613,0.00028768,5]
[385353231,1757790733740,-1004.17173252,0.00028768,5]
[385353232,1757790733749,-1002.20686082,0.00028768,5]
[385353233,1757790733758,-338.0,0.0002877,2]
[385353234,1757790733767,-1631.03118485,0.00028777,2]
[385353235,1757790733775,-3206.705462,0.00028811,4]
[385353236,1757790733784,-2492.142925,0.00028811,4]
[385353237,1757790733794,-3896.254989,0.00028811,4]
[385353238,1757790733804,-309.29654756,0.0002884,2]
[385353239,1757790733813,-291.0,0.0002884,2]
[385353240,1757790733823,-500.0,0.00028869,2]
[385353241,1757790733832,-500.0,0.00028869,2]
[385353242,1757790733841,-408.60878744,0.00028888,2]
[385353243,1757790733851,-1728.25509436,0.000289,2]
[385353244,1757790733860,-500.0,0.0002897,2]
[385353245,1757790733869,-186.0,0.00028997,14]
[385353246,1757790733878,-10169.04611632,0.00029,2]
[385353247,1757790733887,-43244.07,0.00029,2]
[385353248,1757790733896,-50925.12,0.00029,7]
[385353249,1757790733905,-3206.705462,0.00029,3]
[385353250,1757790733915,-2492.142925,0.00029,3]
[385353251,1757790733925,-3896.254989,0.00029,3]
[385353252,1757790733934,-335.0,0.00029003,2]
[385353253,1757790733943,-3745.21,0.00029009,2]
[385353254,1757790733954,-1174.97,0.00029009,2]
[385353255,1757790733963,-1225.19,0.00029009,2]
[385353256,1757790733972,-1792.63,0.00029009,2]
[385353257,1757790733981,-302.64,0.00029009,2]
[385353258,1757790733990,-18358.71,0.00029009,2]
[385353259,1757790734000,-9999.99,0.00029009,2]
[385353260,1757790734010,-150.99,0.00029009,2]
[385353261,1757790734019,-504.32097928,0.00029016,2]
[385353262,1757790734029,-250.0,0.00029021,5]
[385353263,1757790734038,-1000.0,0.00029039,2]
[385353264,1757790734047,-403.48,0.00029041,2]
[385353265,1757790734057,-400.0,0.00029041,2]
[385353266,1757790734066,-400.0,0.00029041,2]
[385353267,1757790734075,-699.06,0.00029041,2]
[385353268,1757790734284,-888.74,0.00029041,2]
[385353269,1757790734294,-385.73208211,0.00029041,2]
[385353270,1757790734303,-1067.33,0.00029041,2]
[385353271,1757790734312,-400.0,0.00029041,2]
[385353272,1757790734322,-494.9,0.00029041,2]
[385353273,1757790734331,-400.0,0.00029041,2]
[385353274,1757790734341,-1011.1,0.00029041,2]
[385353275,1757790734350,-400.0,0.00029041,2]
[385353276,1757790734359,-400.0,0.00029041,2]
[385353277,1757790734369,-400.0,0.00029041,2]
[385353278,1757790734378,-411.04,0.00029041,2]
[385353279,1757790734388,-400.0,0.00029041,2]
[385353280,1757790734398,-400.0,0.00029041,2]
[385353281,1757790734407,-400.0,0.00029041,2]
[385353282,1757790734417,-437.95323992,0.00029041,2]
[385353283,1757790734427,-400.0,0.00029041,2]
[385353284,1757790734440,-400.0,0.00029041,2]
[385353285,1757790734450,-400.0,0.00029041,2]
[385353286,1757790734459,-400.0,0.00029041,2]
[385353287,1757790734472,-400.0,0.00029041,2]
[385353288,1757790734481,-406.39480347,0.00029041,2]
[385353289,1757790734491,-400.0,0.00029041,2]
[385353290,1757790734500,-436.55,0.00029041,2]
[385353291,1757790734509,-415.46,0.00029041,2]
[385353292,1757790734519,-1222.47,0.00029041,2]
[385353293,1757790734528,-400.0,0.00029041,2]
[385353294,1757790734538,-400.0,0.00029041,2]
[385353295,1757790734548,-622.37,0.00029041,2]
[385353296,1757790734557,-751.49,0.00029041,2]
[385353297,1757790734566,-500.0,0.00029041,2]
[385353298,1757790734575,-512.06,0.00029041,2]
[385353299,1757790734584,-400.0,0.00029041,2]
[385353300,1757790734593,-400.0,0.00029041,2]
[385353301,1757790734603,-452.85275644,0.00029041,2]
[385353302,1757790734612,-400.0,0.00029041,2]
[385353303,1757790734621,-400.0,0.00029041,2]
[385353304,1757790734630,-400.0,0.00029041,2]
[385353305,1757790734639,-516.89,0.00029041,2]
[385353306,1757790734651,-400.0,0.00029041,2]
[385353307,1757790734663,-572.28,0.00029041,2]
[385353308,1757790734673,-400.0,0.00029041,2]
[385353309,1757790734682,-400.0,0.00029041,2]
[385353310,1757790734691,-400.0,0.00029041,2]
[385353311,1757790734701,-400.0,0.00029041,2]
[385353312,1757790734711,-400.0,0.00029041,2]
[385353313,1757790734722,-405.34,0.00029041,2]
[385353314,1757790734733,-892.3,0.00029041,2]
[385353315,1757790734742,-400.0,0.00029041,2]
[385353316,1757790734751,-400.0,0.00029041,2]
[385353317,1757790734760,-2090.35,0.00029041,2]
[385353318,1757790734769,-400.0,0.00029041,2]
[385353319,1757790734778,-445.77,0.00029041,2]
[385353320,1757790734791,-849.51,0.00029041,2]
[385353321,1757790734809,-400.0,0.00029041,2]
[385353322,1757790734819,-400.0,0.00029041,2]
[385353323,1757790734828,-400.0,0.00029041,2]
[385353324,1757790734837,-764.33,0.00029041,2]
[385353325,1757790734847,-400.0,0.00029041,2]
[385353326,1757790734856,-812.38,0.00029041,2]
[385353327,1757790734865,-579.38,0.00029041,2]
[385353328,1757790734875,-422.84423255,0.00029041,2]
[385353329,1757790734890,-400.0,0.00029041,2]
[385353330,1757790734906,-400.0,0.00029041,2]
[385353331,1757790734917,-400.0,0.00029041,2]
[385353332,1757790734928,-400.0,0.00029041,2]
[385353333,1757790734939,-400.0,0.00029041,2]
[385353334,1757790734949,-549.91724358,0.00029041,2]
[385353335,1757790734959,-400.0,0.00029041,2]
[385353336,1757790734968,-411.25945399,0.00029041,2]
[385353337,1757790734977,-537.91905257,0.00029041,2]
[385353338,1757790734987,-400.0,0.00029041,2]
[385353339,1757790734999,-400.0,0.00029041,2]
[385353340,1757790735009,-400.0,0.00029041,2]
[385353341,1757790735018,-400.0,0.00029041,2]
[385353342,1757790735030,-400.0,0.00029041,2]
[385353343,1757790735040,-400.0,0.00029041,2]
[385353344,1757790735050,-400.0,0.00029041,2]
[385353345,1757790735060,-1141.14,0.00029041,2]
[385353346,1757790735070,-593.32,0.00029041,2]
[385353347,1757790735081,-400.0,0.00029041,2]
[385353348,1757790735091,-476.58262175,0.00029041,2]
[385353349,1757790735100,-231.18316975,0.00029041,2]
[385353350,1757790735111,-762.02,0.00029041,2]
[385353351,1757790735122,-400.0,0.00029041,2]
[385353352,1757790735134,-400.0,0.00029041,2]
[385353353,1757790735143,-633.2,0.00029041,2]
[385353354,1757790735152,-400.0,0.00029041,2]
[385353355,1757790735163,-400.0,0.00029041,2]
[385353356,1757790735173,-400.0,0.00029041,2]
[385353357,1757790735183,-400.0,0.00029041,2]
[385353358,1757790735193,-548.72,0.00029041,2]
[385353359,1757790735204,-400.0,0.00029041,2]
[385353360,1757790735214,-214.57487475,0.00029041,2]
[385353361,1757790735223,-400.0,0.00029041,2]
[385353362,1757790735232,-400.0,0.00029041,2]
[385353363,1757790735241,-400.0,0.00029041,2]
[385353364,1757790735250,-400.0,0.00029041,2]
[385353365,1757790735260,-411.96,0.00029041,2]
[385353366,1757790735269,-653.34,0.00029041,2]
[385353367,1757790735278,-400.0,0.00029041,2]
[385353368,1757790735287,-400.0,0.00029041,2]
[385353369,1757790735296,-400.0,0.00029041,2]
[385353370,1757790735305,-891.73,0.00029041,2]
[385353371,1757790735314,-400.0,0.00029041,2]
[385353372,1757790735323,-1354.32,0.00029041,2]
[385353373,1757790735333,-598.23,0.00029041,2]
[385353374,1757790735342,-518.98,0.00029041,2]
[385353375,1757790735351,-925.24,0.00029041,2]
[385353376,1757790735360,-400.0,0.00029041,2]
[385353377,1757790735370,-400.0,0.00029041,2]
[385353378,1757790735379,-722.44,0.00029041,2]
[385353379,1757790735389,-400.0,0.00029041,2]
[385353380,1757790735398,-400.0,0.00029041,2]
[385353381,1757790735407,-458.42317445,0.00029041,2]
[385353382,1757790735416,-400.0,0.00029041,2]
[385353383,1757790735425,-506.66,0.00029041,2]
[385353384,1757790735434,-211.79051077,0.00029041,2]
[385353385,1757790735443,-400.0,0.00029041,2]
[385353386,1757790735452,-1909.11,0.00029041,2]
[385353387,1757790735461,-400.0,0.00029041,2]
[385353388,1757790735473,-400.0,0.00029041,2]